bitfinex-derivatives/quotes_BTCF0:USTF0_20251129
["timestamp","ask_amount","ask_price","bid_price","bid_amount"]
[1764398117888,0.64621586,90472.0,90471.0,0.00183397]
[1764398118975,0.50621586,90472.0,90471.0,0.00183397]
[1764398121695,0.67621586,90472.0,90471.0,0.00183397]
[1764398122188,0.12467,90457.0,90453.0,0.00016586]
[1764398122384,0.12467,90454.0,90453.0,0.00016586]
[1764398122585,0.48547,90454.0,90453.0,0.00016586]
[1764398122982,0.62547,90454.0,90453.0,0.00016586]
[1764398124891,0.91547,90454.0,90453.0,0.00216586]
[1764398125288,0.62547,90454.0,90453.0,0.00016586]
[1764398125483,0.62547,90454.0,90453.0,0.00116586]
[1764398125886,0.62547,90454.0,90453.0,0.00016586]
[1764398126581,0.62647,90454.0,90453.0,0.00016586]
[1764398127092,0.48647,90454.0,90453.0,0.00016586]
[1764398127397,0.49647,90454.0,90453.0,0.00016586]
[1764398127693,0.48647,90454.0,90453.0,0.00016586]
[1764398128092,0.48647,90454.0,90453.0,0.06337586]
[1764398128697,0.48647,90454.0,90453.0,0.00016586]
[1764398128995,0.93647,90454.0,90453.0,0.00016586]
[1764398130294,0.9475252,90454.0,90453.0,0.00016586]
[1764398133396,0.48647,90454.0,90453.0,0.00016586]
[1764398133599,0.48647,90454.0,90453.0,0.12780586]
[1764398134198,0.48647,90454.0,90453.0,0.00016586]
[1764398134500,0.52647,90454.0,90453.0,0.00016586]
[1764398134699,0.48647,90454.0,90453.0,0.01122116]
[1764398135098,0.48647,90454.0,90453.0,0.00016586]
[1764398135795,0.52647,90454.0,90453.0,0.00016586]
[1764398136302,0.48647,90454.0,90453.0,0.00016586]
[1764398139203,0.85647,90454.0,90453.0,0.00016586]
[1764398142001,0.85647,90454.0,90453.0,0.01122116]
[1764398143392,0.85647,90454.0,90453.0,0.00016586]
[1764398144398,0.85647,90454.0,90453.0,0.12780586]
[1764398144904,1.20647,90454.0,90453.0,0.12780586]
[1764398145907,0.001,90454.0,90453.0,0.12780586]
[1764398147002,0.3608,90471.0,90470.0,0.1386932]
[1764398147207,0.84442,90471.0,90470.0,0.1386932]
[1764398147506,0.81442,90471.0,90470.0,0.0742632]
[1764398147705,0.81442,90471.0,90470.0,0.0110532]
[1764398147897,0.80442,90471.0,90470.0,0.0110532]
[1764398148207,0.80942,90471.0,90470.0,0.0110532]
[1764398148502,0.89942,90471.0,90470.0,0.0110532]
[1764398149102,1.0858,90471.0,90466.0,0.0110537]
[1764398149301,0.12362,90467.0,90466.0,0.0742637]
[1764398149504,0.48362,90467.0,90466.0,0.0742637]
[1764398150100,0.12362,90467.0,90466.0,0.1386937]
[1764398150302,0.26362,90467.0,90466.0,0.1386937]
[1764398150606,0.33362,90467.0,90466.0,0.1386937]
[1764398151007,0.33562,90467.0,90466.0,0.1386937]
[1764398157211,0.11587,90466.0,90465.0,0.01259184]
[1764398157420,0.11587,90466.0,90459.0,0.20137887]
[1764398157421,0.11587,90460.0,90459.0,0.20137887]
[1764398157610,0.53587,90460.0,90459.0,0.20137887]
[1764398158513,0.53587,90460.0,90459.0,0.12204]
[1764398159611,0.25587,90460.0,90459.0,0.13452559]
[1764398160511,0.51587,90460.0,90459.0,0.13452559]
[1764398160808,0.11587,90455.0,90454.0,0.0694251]
[1764398161005,0.47587,90455.0,90454.0,0.0694251]
[1764398161505,0.47587,90455.0,90454.0,0.1330951]
[1764398161911,0.47587,90455.0,90454.0,0.1684151]
[1764398162108,0.47587,90455.0,90454.0,0.1704151]
[1764398162705,0.25587,90455.0,90454.0,0.1704151]
[1764398163006,0.14,90455.0,90454.0,0.1704151]
[1764398163601,0.4176,90462.0,90461.0,0.1684143]
[1764398163800,0.3708,90462.0,90461.0,0.1684143]
[1764398164514,0.3708,90462.0,90461.0,0.24780708]
[1764398164716,0.3708,90462.0,90461.0,0.1684143]
[1764398165510,0.77667,90462.0,90461.0,0.1684143]
[1764398165714,0.50667,90462.0,90461.0,0.1684143]
[1764398165918,0.4476,90462.0,90461.0,0.1684143]
[1764398166109,0.4176,90471.0,90470.0,0.1330932]
[1764398166416,0.64667,90471.0,90470.0,0.1330932]
[1764398167217,0.84767,90471.0,90470.0,0.1330932]
[1764398167516,0.85067,90471.0,90470.0,0.1330932]
[1764398171309,0.0608,90471.0,90470.0,0.2124892]
[1764398171619,0.004,90471.0,90470.0,0.1330932]
[1764398172315,0.0021659,90471.0,90470.0,0.14549277]
[1764398172523,0.0021659,90471.0,90470.0,0.24399767]
[1764398172716,6e-08,90472.0,90471.0,0.12204]
[1764398172915,0.00027629,90486.0,90485.0,0.1330914]
[1764398173214,0.00027629,90486.0,90485.0,0.4938914]
[1764398174611,0.00016586,90495.0,90494.0,0.1330903]
[1764398174810,0.04016586,90495.0,90494.0,0.21246043]
[1764398175314,0.04016586,90495.0,90494.0,0.21243436]
[1764398175510,0.00016586,90495.0,90494.0,0.1330903]
[1764398175921,0.47667,90509.0,90508.0,0.1330886]
[1764398176113,0.48667,90509.0,90508.0,0.1330886]
[1764398176715,0.47667,90509.0,90508.0,0.1330886]
[1764398177021,0.74667,90509.0,90508.0,0.1330886]
[1764398177219,0.74667,90509.0,90508.0,0.12204]
[1764398177822,0.74667,90509.0,90508.0,0.12504]
[1764398178019,0.6876,90509.0,90508.0,0.12504]
[1764398178217,0.6308,90509.0,90508.0,0.12204]
[1764398178417,0.6308,90509.0,90508.0,0.12504]
[1764398179313,0.6308,90509.0,90508.0,0.12204]
[1764398179514,0.3608,90509.0,90508.0,0.12604]
[1764398179717,0.65667,90509.0,90508.0,0.12604]
[1764398179913,0.47667,90509.0,90508.0,0.12604]
[1764398180116,0.86667,90509.0,90508.0,0.12604]
[1764398180819,0.86667,90509.0,90508.0,0.1381395]
[1764398181015,0.8076,90509.0,90508.0,0.1381395]
[1764398181216,0.7508,90509.0,90508.0,0.1381395]
[1764398181626,0.3608,90509.0,90508.0,0.1381395]
[1764398181919,0.11587,90514.0,90513.0,0.011048]
[1764398182111,0.53587,90514.0,90513.0,0.069418]
[1764398182311,0.53587,90514.0,90513.0,0.122028]
[1764398183523,0.05247,90509.0,90508.0,0.077988]
[1764398183717,0.1023,90509.0,90508.0,0.130598]
[1764398183914,0.1023,90509.0,90508.0,0.126598]
[1764398184510,0.1023,90509.0,90508.0,0.1195495]
[1764398184714,0.1023,90509.0,90508.0,0.1305981]
[1764398185717,1.3131,90509.0,90508.0,0.004]
[1764398186121,1.0231,90509.0,90508.0,0.004]
[1764398186524,0.8831,90509.0,90508.0,0.004]
[1764398186715,0.8831,90509.0,90508.0,0.05742]
[1764398187022,0.5031,90509.0,90508.0,0.10818]
[1764398187527,0.1001296,90518.0,90517.0,0.1152275]
[1764398187829,0.0401096,90518.0,90517.0,0.1152275]
[1764398188017,0.0001096,90518.0,90517.0,0.1152275]
[1764398188218,0.1001296,90518.0,90517.0,0.1152275]
[1764398188814,0.1001296,90518.0,90517.0,0.10418]
[1764398189431,0.5001296,90518.0,90517.0,0.10418]
[1764398189818,0.5001296,90518.0,90505.0,0.17457751]
[1764398189819,0.10002,90506.0,90505.0,0.17457751]
[1764398190225,0.10002,90506.0,90505.0,0.115229]
[1764398191032,0.10002,90506.0,90505.0,0.120229]
[1764398192029,0.05097,90506.0,90505.0,0.120229]
[1764398192226,0.05097,90506.0,90505.0,0.17957751]
[1764398193031,0.10002,90506.0,90505.0,0.17957751]
[1764398193220,0.10002,90506.0,90505.0,0.120229]
[1764398193626,0.0491596,90518.0,90517.0,0.10418]
[1764398193827,0.9001296,90518.0,90517.0,0.10418]
[1764398194725,0.9001296,90518.0,90517.0,0.10618]
[1764398195333,0.6801296,90518.0,90517.0,0.10618]
[1764398196427,0.8901296,90518.0,90515.0,0.0110477]
[1764398196631,0.10002,90516.0,90515.0,0.0110477]
[1764398196828,0.45002,90516.0,90515.0,0.0110477]
[1764398197023,0.45002,90516.0,90515.0,0.0644677]
[1764398197329,0.10002,90512.0,90511.0,0.0110482]
[1764398197523,0.50002,90512.0,90511.0,0.0110482]
[1764398197830,0.50002,90512.0,90511.0,0.0644682]
[1764398198032,0.1110682,90511.0,90510.0,0.05930162]
[1764398198230,0.1110696,90500.0,90499.0,0.00016576]
[1764398198531,0.9310696,90500.0,90499.0,0.00016576]
[1764398198732,1.0518696,90500.0,90499.0,0.00016576]
[1764398199326,1.04082,90500.0,90499.0,0.05358576]
[1764398199627,0.86082,90500.0,90499.0,0.10434576]
[1764398200426,0.64082,90500.0,90499.0,0.10434576]
[1764398200920,0.64082,90500.0,90499.0,0.11234576]
[1764398202332,0.86082,90500.0,90499.0,0.00816576]
[1764398203632,0.49177,90500.0,90499.0,0.11234576]
[1764398204629,0.41177,90500.0,90499.0,0.11234576]
[1764398205137,0.46082,90500.0,90499.0,0.11234576]
[1764398215434,0.46082,90500.0,90499.0,0.11134576]
[1764398216043,0.46082,90500.0,90499.0,0.10734576]
[1764398217935,0.3608,90500.0,90499.0,0.10734576]
[1764398218343,0.40568,90500.0,90499.0,0.10734576]
[1764398218936,0.45343,90500.0,90499.0,0.10734576]
[1764398219736,0.09263,90504.0,90503.0,0.12886]
[1764398220239,0.011048,90513.0,90511.0,0.09979]
[1764398220441,0.09263,90512.0,90508.0,0.07941437]
[1764398220642,0.09263,90509.0,90508.0,0.17920437]
[1764398220837,0.09263,90509.0,90508.0,0.09979]
[1764398221238,0.45343,90517.0,90516.0,0.09979]
[1764398221445,0.85343,90517.0,90516.0,0.09979]
[1764398221638,0.85343,90517.0,90516.0,0.1108376]
[1764398222046,0.85343,90517.0,90516.0,0.09979]
[1764398222346,0.85443,90517.0,90516.0,0.09979]
[1764398222542,0.85843,90517.0,90516.0,0.09979]
[1764398222843,0.57843,90517.0,90516.0,0.09979]
[1764398223038,0.57643,90517.0,90516.0,0.09979]
[1764398223233,0.4828,90517.0,90516.0,0.09979]
[1764398223438,0.3628,90517.0,90516.0,0.09979]
[1764398225043,0.002,90517.0,90516.0,0.09979]
[1764398225550,0.00027617,90526.0,90517.0,0.1399075]
[1764398226548,0.00027617,90526.0,90525.0,0.1108365]
[1764398226850,0.00027617,90526.0,90525.0,0.38469254]
[1764398227247,0.00027617,90526.0,90525.0,0.2855165]
[1764398227643,0.09290617,90526.0,90525.0,0.2855165]
[1764398228242,0.09290617,90526.0,90525.0,0.27447]
[1764398229148,0.09290617,90526.0,90525.0,0.27547]
[1764398229347,0.09290617,90526.0,90525.0,0.001]
[1764398229950,0.09290617,90526.0,90525.0,0.04934]
[1764398230637,0.09290617,90526.0,90525.0,0.10079]
[1764398231555,0.09390617,90526.0,90525.0,0.09979]
[1764398231742,0.00127617,90526.0,90525.0,0.09979]
[1764398232155,0.00027617,90526.0,90525.0,0.09979]
[1764398233246,0.00027617,90526.0,90525.0,0.10079]
[1764398235456,0.45343,90544.0,90543.0,0.1108343]
[1764398235757,0.3608,90544.0,90543.0,0.1108343]
[1764398237049,0.003,90544.0,90543.0,0.1108343]
[1764398237843,0.004,90544.0,90543.0,0.1108343]
[1764398240347,0.3608,90553.0,90552.0,0.1399032]
[1764398240548,0.3608,90553.0,90552.0,0.3145432]
[1764398240761,0.45343,90553.0,90552.0,0.3145432]
[1764398240962,0.45343,90553.0,90552.0,0.3035]
[1764398241463,0.46043,90553.0,90552.0,0.3035]
[1764398243666,0.3678,90553.0,90552.0,0.3035]
[1764398245961,0.43922,90553.0,90552.0,0.3035]
[1764398248063,0.40351,90553.0,90552.0,0.3035]
[1764398249958,0.3678,90553.0,90552.0,0.3035]
[1764398251366,0.3678,90553.0,90552.0,0.36280812]
[1764398251765,0.43658,90553.0,90552.0,0.36280812]
[1764398252158,0.06878,90546.0,90545.0,0.11419]
[1764398252466,0.06878,90546.0,90545.0,0.28879]
[1764398253267,0.3678,90553.0,90545.0,0.28879]
[1764398253268,0.40119,90553.0,90552.0,0.11151]
[1764398253567,0.42958,90553.0,90552.0,0.1225532]
[1764398255062,0.43358,90553.0,90552.0,0.1225532]
[1764398255256,0.39919,90553.0,90552.0,0.1225532]
[1764398255462,0.3658,90553.0,90552.0,0.1225532]
[1764398257854,0.005,90553.0,90552.0,0.1225532]
[1764398259665,0.3608,90571.0,90552.0,0.1225532]
[1764398259666,0.42958,90571.0,90570.0,0.08512]
[1764398260866,0.371839,90587.0,90570.0,0.08512]
[1764398261164,0.880619,90587.0,90586.0,0.04335]
[1764398261359,0.06878,90581.0,90580.0,0.11151]
[1764398261571,0.48878,90581.0,90580.0,0.11151]
[1764398262366,0.48978,90581.0,90580.0,0.11151]
[1764398262967,0.06978,90581.0,90580.0,0.11151]
[1764398263160,0.03539,90581.0,90580.0,0.11151]
[1764398263564,0.06978,90581.0,90580.0,0.11151]
[1764398263773,0.07378,90581.0,90580.0,0.11151]
[1764398263969,0.07378,90581.0,90580.0,0.04335]
[1764398264270,0.06878,90574.0,90573.0,0.11151]
[1764398265267,0.06878,90571.0,90570.0,0.44011278]
[1764398265475,0.06878,90571.0,90570.0,0.48346278]
[1764398265665,0.06878,90571.0,90570.0,0.40415]
[1764398265862,0.06878,90568.0,90567.0,0.07931278]
[1764398266063,0.06878,90563.0,90561.0,0.07947844]
[1764398266268,0.06878,90562.0,90561.0,0.08528566]
[1764398266472,0.079822,90562.0,90561.0,0.08528566]
[1764398267370,0.079822,90562.0,90561.0,0.16458399]
[1764398267580,0.079822,90562.0,90561.0,0.08046399]
[1764398268068,0.079822,90562.0,90561.0,0.00116566]
[1764398268475,0.079822,90562.0,90561.0,0.04451566]
[1764398268661,0.079822,90562.0,90561.0,0.00116566]
[1764398268865,0.509822,90562.0,90561.0,0.00116566]
[1764398270187,0.0798225,90558.0,90557.0,0.05948234]
[1764398270476,0.0798225,90558.0,90550.0,0.05948234]
[1764398270477,0.06878,90551.0,90550.0,0.05948234]
[1764398270679,0.43878,90551.0,90550.0,0.05948234]
[1764398277279,0.04494,90542.0,90541.0,0.15940399]
[1764398278784,0.04494,90542.0,90541.0,0.16140399]
[1764398278986,0.0559844,90542.0,90541.0,0.16140399]
[1764398280578,0.0559828,90556.0,90555.0,0.07994]
[1764398280776,0.3059827,90556.0,90555.0,0.07994]
[1764398281281,0.3059827,90556.0,90553.0,0.05945213]
[1764398281584,0.0110437,90548.0,90547.0,0.05945213]
[1764398281783,0.7667837,90548.0,90547.0,0.05945213]
[1764398282587,0.4767837,90548.0,90547.0,0.05945213]
[1764398282784,0.4167837,90548.0,90547.0,0.13939213]
[1764398282986,0.40574,90548.0,90547.0,0.07994]
[1764398283679,0.40574,90548.0,90547.0,0.08094]
[1764398284278,0.40574,90548.0,90547.0,0.14038135]
[1764398284886,0.40574,90548.0,90547.0,0.13938135]
[1764398285090,0.40574,90548.0,90547.0,0.08194]
[1764398285479,0.40574,90548.0,90547.0,0.07994]
[1764398285678,0.40574,90548.0,90547.0,0.08194]
[1764398286088,0.40574,90548.0,90547.0,0.07994]
[1764398286387,0.40574,90548.0,90547.0,0.08394]
[1764398288085,0.40574,90548.0,90547.0,0.07994]
[1764398288386,0.40574,90556.0,90555.0,0.07994]
[1764398288790,0.3608,90556.0,90555.0,0.07994]
[1764398290279,0.3608,90556.0,90555.0,0.08194]
[1764398290486,0.0001653,90560.0,90559.0,0.10596]
[1764398290688,0.0001653,90560.0,90559.0,0.18519143]
[1764398291092,0.0001653,90560.0,90559.0,0.10596]
[1764398292381,0.0001653,90560.0,90559.0,0.10696]
[1764398297195,0.40574,90584.0,90583.0,0.07994]
[1764398297396,0.51574,90584.0,90583.0,0.07994]
[1764398298395,0.51574,90584.0,90583.0,0.13936734]
[1764398298396,0.52174,90584.0,90583.0,0.13936734]
[1764398298601,0.52274,90584.0,90583.0,0.13936734]
[1764398298801,0.52274,90584.0,90583.0,0.07994]
[1764398299198,0.52174,90584.0,90583.0,0.07994]
[1764398299404,0.001,90584.0,90583.0,0.07994]
[1764398299604,0.006,90584.0,90583.0,0.07994]
[1764398299904,0.006,90584.0,90583.0,0.159207]
[1764398300403,0.006,90584.0,90583.0,0.07994]
[1764398301098,0.005,90584.0,90583.0,0.07994]
[1764398301396,0.004,90584.0,90583.0,0.07994]
[1764398301603,0.005,90584.0,90583.0,0.07994]
[1764398303908,0.005,90584.0,90583.0,0.09216758]
[1764398312000,0.02716,90584.0,90583.0,0.09216758]
[1764398313103,0.005,90584.0,90583.0,0.09216758]
[1764398313313,0.01608,90584.0,90583.0,0.09216758]
[1764398313813,0.02716,90584.0,90583.0,0.09216758]
[1764398317312,0.02716,90584.0,90583.0,0.17143458]
[1764398318404,0.02716,90584.0,90583.0,0.09216758]
[1764398320914,0.02716,90584.0,90583.0,0.04952758]
[1764398321117,0.02716,90584.0,90583.0,0.01222758]
[1764398321312,0.02216,90580.0,90579.0,0.42991]
[1764398321507,0.02216,90580.0,90579.0,0.06911]
[1764398322616,0.02516,90580.0,90579.0,0.06911]
[1764398322810,0.02516,90580.0,90579.0,0.08118132]
[1764398323010,0.02616,90580.0,90579.0,0.08118132]
[1764398323414,0.02616,90580.0,90579.0,0.16038634]
[1764398325321,0.02616,90580.0,90579.0,0.08118132]
[1764398330327,0.02616,90580.0,90574.0,0.07955711]
[1764398330328,0.02216,90576.0,90574.0,0.07955711]
[1764398330627,0.3940004,90575.0,90574.0,0.00016566]
[1764398330810,0.02216,90571.0,90570.0,0.05954187]
[1764398331011,0.02216,90568.0,90567.0,0.05954187]
[1764398331212,0.39216,90568.0,90567.0,0.12865187]
[1764398331424,0.39216,90568.0,90567.0,0.06911]
[1764398331623,0.02216,90566.0,90565.0,0.12865187]
[1764398331811,0.44216,90566.0,90565.0,0.12865187]
[1764398332412,0.44216,90566.0,90565.0,0.06911]
[1764398340727,0.44216,90566.0,90565.0,0.12865187]
[1764398341630,0.02216,90566.0,90565.0,0.12865187]
[1764398341934,0.02216,90566.0,90565.0,0.06911]
[1764398342430,0.01108,90566.0,90565.0,0.06911]
[1764398342625,0.0118113,90568.0,90567.0,0.06313]
[1764398342820,0.4225813,90568.0,90567.0,0.12253451]
[1764398343434,0.4225813,90568.0,90567.0,0.06313]
[1764398346637,0.00154,90565.0,90564.0,0.02977]
[1764398346834,0.28154,90565.0,90564.0,0.06313]
[1764398348438,0.02154,90565.0,90564.0,0.06313]
[1764398354340,0.33154,90565.0,90564.0,0.06313]
[1764398356239,0.06154,90565.0,90564.0,0.06313]
[1764398357339,0.00154,90565.0,90564.0,0.06313]
[1764398358335,0.00154,90565.0,90564.0,0.14252145]
[1764398359432,0.00154,90565.0,90564.0,0.06313]
[1764398360738,0.79234,90565.0,90564.0,0.06313]
[1764398363038,0.79434,90565.0,90564.0,0.1426293]
[1764398367251,0.79434,90565.0,90564.0,0.06313]
[1764398367937,0.79434,90565.0,90564.0,0.08041]
[1764398369948,0.0110426,90557.0,90556.0,0.07966496]
[1764398370155,0.0110426,90557.0,90552.0,0.07267]
[1764398370156,0.8218426,90557.0,90552.0,0.07267]
[1764398370345,0.8218426,90557.0,90556.0,0.05959963]
[1764398371149,0.90821529,90557.0,90555.0,0.05959963]
[1764398371352,0.90821529,90557.0,90555.0,0.08640963]
[1764398371555,0.9962826,90557.0,90556.0,0.05539]
[1764398371754,0.9962826,90557.0,90556.0,0.11498963]
[1764398372054,0.8218426,90557.0,90556.0,0.11498963]
[1764398372247,0.8218426,90557.0,90556.0,0.05539]
[1764398372849,0.8218426,90557.0,90556.0,0.05639]
[1764398373243,0.3608,90557.0,90556.0,0.05539]
[1764398373456,0.4608,90557.0,90556.0,0.05539]
[1764398373654,0.4608,90557.0,90556.0,0.1348893]
[1764398375559,0.4608,90557.0,90556.0,0.1358893]
[1764398376966,0.3608,90557.0,90556.0,0.1358893]
[1764398377166,0.3608,90557.0,90556.0,0.05639]
[1764398377754,0.0110418,90564.0,90560.0,0.01728]
[1764398377956,0.4410418,90564.0,90563.0,0.05539]
[1764398379072,0.4420418,90564.0,90563.0,0.05539]
[1764398380069,0.4410418,90564.0,90563.0,0.05639]
[1764398391181,0.8018418,90564.0,90563.0,0.05639]
[1764398393980,0.8018418,90564.0,90563.0,0.05539]
[1764398402276,0.8018418,90564.0,90563.0,0.13479189]
[1764398403185,0.8018418,90564.0,90563.0,0.05539]
[1764398405788,0.3608,90564.0,90563.0,0.05539]
[1764398405982,0.0110409,90572.0,90571.0,0.05371]
[1764398406989,0.36096566,90575.0,90574.0,0.05371]
[1764398408395,0.36296566,90575.0,90574.0,0.05371]
[1764398409092,0.36396566,90575.0,90574.0,0.05371]
[1764398409294,0.00316566,90575.0,90574.0,0.05371]
[1764398409493,0.3608,90584.0,90583.0,0.05371]
[1764398411001,0.3658,90584.0,90583.0,0.05371]
[1764398412199,0.3658,90584.0,90583.0,0.13297883]
[1764398413299,0.3658,90584.0,90583.0,0.05371]
[1764398415917,0.005,90584.0,90583.0,0.05371]
[1764398419117,0.005,90584.0,90583.0,0.06524136]
[1764398438229,0.005,90584.0,90583.0,0.16444784]
[1764398439127,0.36096566,90593.0,90592.0,0.0732884]
[1764398439434,0.36096566,90593.0,90592.0,0.17264666]
[1764398439930,0.00016566,90593.0,90592.0,0.17264666]
[1764398440136,0.00116566,90593.0,90592.0,0.17260183]
[1764398441236,0.00116566,90593.0,90592.0,0.0732884]
[1764398441421,0.00516566,90593.0,90592.0,0.0732884]
[1764398441622,0.00416566,90593.0,90592.0,0.0732884]
[1764398442033,0.00416566,90593.0,90592.0,0.0772884]
[1764398442034,0.00016566,90593.0,90592.0,0.0772884]
[1764398442738,0.00016566,90593.0,90592.0,0.17660183]
[1764398442926,0.00016566,90593.0,90592.0,0.0772884]
[1764398443134,0.3608,90604.0,90603.0,0.058577]
[1764398444636,0.3608,90604.0,90603.0,0.060577]
[1764398445633,0.3608,90604.0,90603.0,0.058577]
[1764398445937,0.3608,90604.0,90603.0,0.061577]
[1764398447231,0.0110352,90618.0,90617.0,0.04754]
[1764398448439,0.0130352,90618.0,90617.0,0.04754]
[1764398453639,0.0130352,90618.0,90617.0,0.05884219]
[1764398456748,0.3830352,90618.0,90617.0,0.05884219]
[1764398457146,0.1230352,90618.0,90617.0,0.05884219]
[1764398458449,0.4130352,90618.0,90617.0,0.09845969]
[1764398459240,0.4130352,90618.0,90617.0,0.0871575]
[1764398459446,0.4130352,90618.0,90617.0,0.0396175]
[1764398459744,0.4130352,90618.0,90615.0,0.0396175]
[1764398460244,0.4130352,90618.0,90616.0,0.0396175]
[1764398460835,0.4120352,90618.0,90616.0,0.0396175]
[1764398461039,0.4130352,90618.0,90616.0,0.0396175]
[1764398461445,0.4120352,90618.0,90615.0,0.0396175]
[1764398461744,0.4120352,90618.0,90616.0,0.1007375]
[1764398463140,0.4120352,90618.0,90617.0,0.0862575]
[1764398463943,0.4120352,90618.0,90617.0,0.0622075]
[1764398464341,0.4120352,90618.0,90617.0,0.0396175]
[1764398465152,0.0110357,90614.0,90613.0,0.05948175]
[1764398465449,0.7818357,90614.0,90613.0,0.05948175]
[1764398465842,0.7818357,90614.0,90613.0,0.08207175]
[1764398466044,0.7818357,90614.0,90613.0,0.05948175]
[1764398466248,0.7828357,90614.0,90612.0,0.01471]
[1764398466451,0.7828357,90614.0,90612.0,0.0373]
[1764398466652,0.7828357,90614.0,90612.0,0.096795]
[1764398467142,0.7828357,90614.0,90613.0,0.060495]
[1764398467344,0.7818357,90614.0,90613.0,0.001]
[1764398467637,0.7828357,90614.0,90612.0,0.096795]
[1764398467841,0.7828357,90614.0,90612.0,0.097795]
[1764398468242,0.7828357,90614.0,90613.0,0.060495]
[1764398468949,0.7828357,90614.0,90613.0,0.059495]
[1764398469149,0.7828357,90614.0,90612.0,0.0383]
[1764398469348,0.7818357,90614.0,90612.0,0.0383]
[1764398469550,0.7828357,90614.0,90612.0,0.06235]
[1764398470354,0.7828357,90614.0,90613.0,0.001]
[1764398470753,0.7828357,90614.0,90612.0,0.01471]
[1764398470954,0.7828357,90614.0,90612.0,0.0383]
[1764398471355,0.7828357,90614.0,90612.0,0.0373]
[1764398471556,0.7828357,90614.0,90613.0,0.001]
[1764398471754,0.7828357,90614.0,90613.0,0.02359]
[1764398471954,0.7828357,90614.0,90613.0,0.02259]
[1764398472150,0.7828357,90614.0,90612.0,0.0383]
[1764398473757,0.7828357,90614.0,90612.0,0.01571]
[1764398474056,0.7828357,90614.0,90613.0,0.04764]
[1764398474249,0.7828357,90614.0,90613.0,0.02359]
[1764398474449,0.7828357,90614.0,90613.0,0.02259]
[1764398474644,0.7828357,90614.0,90613.0,0.04664]
[1764398475149,0.7828357,90614.0,90613.0,0.04764]
[1764398475352,0.7818357,90614.0,90613.0,0.04764]
[1764398475554,0.7828357,90614.0,90613.0,0.04764]
[1764398483454,0.7718,90614.0,90613.0,0.04764]
[1764398487357,0.7718,90614.0,90613.0,0.001]
[1764398489461,0.946,90614.0,90613.0,0.001]
[1764398491073,0.0110358,90613.0,90610.0,0.01162866]
[1764398491271,0.0110363,90609.0,90604.0,0.09401901]
[1764398491471,0.4010363,90609.0,90604.0,0.09401901]
[1764398491771,0.4010363,90609.0,90608.0,0.00016556]
[1764398492970,0.0110373,90601.0,90600.0,0.11499901]
[1764398493166,0.0110377,90597.0,90596.0,0.02422788]
[1764398493361,0.4110377,90597.0,90596.0,0.02422788]
[1764398493566,0.4110377,90597.0,90596.0,0.01263]
[1764398494865,0.4110377,90597.0,90592.0,0.01263]
[1764398494866,0.0110382,90593.0,90592.0,0.01263]
[1764398495062,0.7918382,90593.0,90592.0,0.03384]
[1764398495262,0.7918382,90593.0,90592.0,0.05504]
[1764398495965,0.7918382,90593.0,90592.0,0.05704]
[1764398498381,0.7918382,90593.0,90592.0,0.05504]
[1764398498681,0.7918382,90593.0,90592.0,0.05704]
[1764398498983,0.7918382,90593.0,90592.0,0.05504]
[1764398499177,0.7918382,90593.0,90592.0,0.05704]
[1764398502194,0.7918382,90593.0,90592.0,0.11650265]
[1764398507594,0.7918382,90593.0,90592.0,0.05704]
[1764398513289,0.7918382,90593.0,90592.0,0.11650265]
[1764398514994,0.7918382,90593.0,90592.0,0.05704]
[1764398519096,0.3608,90593.0,90592.0,0.05704]
[1764398520791,0.7908,90593.0,90592.0,0.05704]
[1764398521299,0.7908,90593.0,90592.0,0.13640314]
[1764398522204,0.7908,90593.0,90592.0,0.05704]
[1764398526010,0.3608,90593.0,90592.0,0.05704]
[1764398526596,0.3608,90600.0,90598.0,0.0110375]
[1764398526797,0.3808,90600.0,90599.0,0.04348]
[1764398527604,0.3818,90600.0,90599.0,0.04348]
[1764398528413,0.3808,90600.0,90599.0,0.04348]
[1764398528604,0.3818,90600.0,90599.0,0.04348]
[1764398531303,0.3618,90600.0,90599.0,0.04348]
[1764398532612,0.001,90600.0,90599.0,0.04348]
[1764398539625,0.00016523,90606.0,90605.0,0.0545167]
[1764398540821,0.00216523,90606.0,90605.0,0.0545167]
[1764398541317,0.00216523,90606.0,90605.0,0.04348]
[1764398541522,0.42216523,90606.0,90605.0,0.04348]
[1764398542118,0.42216523,90606.0,90604.0,0.013]
[1764398542324,0.0110367,90605.0,90604.0,0.013]
[1764398542621,0.4210367,90605.0,90604.0,0.05945446]
[1764398542815,0.0110369,90604.0,90602.0,0.0396394]
[1764398543015,0.4610369,90604.0,90602.0,0.0396394]
[1764398544119,0.4,90603.0,90596.0,0.0396394]
[1764398544424,0.0110378,90596.0,90593.0,0.0396394]
[1764398544624,0.3810378,90596.0,90593.0,0.0396394]
[1764398546021,0.7418378,90596.0,90592.0,0.0396394]
[1764398546223,0.7418378,90596.0,90593.0,0.001]
[1764398547227,0.7418378,90596.0,90592.0,0.0396394]
[1764398547429,0.0110383,90592.0,90591.0,0.0396394]
[1764398547617,0.4210383,90592.0,90591.0,0.0396394]
[1764398547818,0.4210383,90592.0,90590.0,0.0129]
[1764398547819,0.0110384,90591.0,90590.0,0.0129]
[1764398548126,0.4310384,90591.0,90590.0,0.0129]
[1764398548822,0.4310384,90591.0,90590.0,0.03492]
[1764398550023,0.4310384,90591.0,90590.0,0.05797]
[1764398550528,0.4310384,90591.0,90590.0,0.05697]
[1764398553429,0.4310384,90591.0,90590.0,0.09658931]
[1764398562530,0.7918384,90591.0,90590.0,0.09658931]
[1764398565336,0.7918384,90591.0,90590.0,0.05697]
[1764398579953,0.4310384,90591.0,90590.0,0.05697]
[1764398580252,0.7918384,90591.0,90590.0,0.05697]
[1764398585250,0.7918384,90591.0,90588.0,0.09215904]
[1764398585455,0.7918384,90591.0,90587.0,0.00016556]
[1764398586357,0.7918384,90591.0,90588.0,0.002]
[1764398586962,0.7918384,90591.0,90587.0,0.00116556]
[1764398587269,0.7918384,90591.0,90590.0,0.05963649]
[1764398587448,0.7918384,90591.0,90589.0,0.08186649]
[1764398587969,0.7928384,90591.0,90589.0,0.02223]
[1764398588169,0.7928384,90591.0,90589.0,0.04422]